fUSD/lending_fUSD_20250326
["ID","MTS","AMOUNT","RATE_DAILY","PERIOD"]
[356715221,1743012642125,-541.0392988,0.00027397,2]
[356715222,1743012642135,-500.0,0.00027397,2]
[356715223,1743012642144,-518.18874098,0.00027397,2]
[356715224,1743012642153,-500.0,0.00027397,2]
[356715225,1743012642162,-530.09020439,0.00027397,2]
[356715226,1743012642171,-500.0,0.00027397,2]
[356715227,1743012642181,-500.0,0.00027397,2]
[356715228,1743012642190,-517.39961954,0.00027397,2]
[356715229,1743012642200,-500.0,0.00027397,2]
[356715230,1743012642210,-620.74555939,0.00027397,2]
[356715231,1743012642220,-513.93036607,0.00027397,2]
[356715232,1743012642229,-500.0,0.00027397,2]
[356715233,1743012642239,-500.0,0.00027397,2]
[356715234,1743012642253,-514.2601278,0.00027397,2]
[356715235,1743012642262,-500.0,0.00027397,2]
[356715236,1743012642272,-4334.17,0.00027397,2]
[356715237,1743012642281,-500.0,0.00027397,2]
[356715238,1743012642291,-500.0,0.00027397,2]
[356715239,1743012642300,-500.0,0.00027397,2]
[356715240,1743012642309,-523.02094407,0.00027397,2]
[356715241,1743012642321,-504.47525764,0.00027397,2]
[356715242,1743012642330,-500.0,0.00027397,2]
[356715243,1743012642340,-522.51728871,0.00027397,2]
[356715244,1743012642349,-503.2944475,0.00027397,2]
[356715245,1743012642358,-500.0,0.00027397,2]
[356715246,1743012642367,-500.0,0.00027397,2]
[356715247,1743012642377,-500.0,0.00027397,2]
[356715248,1743012642386,-500.0,0.00027397,2]
[356715249,1743012642396,-554.82536122,0.00027397,2]
[356715250,1743012642405,-526.84543922,0.00027397,2]
[356715251,1743012642414,-500.0,0.00027397,2]
[356715252,1743012642423,-500.0,0.00027397,2]
[356715253,1743012642433,-500.0,0.00027397,2]
[356715254,1743012642442,-500.0,0.00027397,2]
[356715255,1743012642452,-531.4877463,0.00027397,2]
[356715256,1743012642461,-500.0,0.00027397,2]
[356715257,1743012642470,-527.4579671,0.00027397,2]
[356715258,1743012642479,-500.0,0.00027397,2]
[356715259,1743012642489,-500.0,0.00027397,2]
[356715260,1743012642497,-306.02660027,0.00027397,2]
[356715261,1743012642507,-500.0,0.00027397,2]
[356715262,1743012642516,-500.0,0.00027397,2]
[356715263,1743012642525,-527.01551387,0.00027397,2]
[356715264,1743012642535,-510.64407224,0.00027397,2]
[356715265,1743012642544,-500.0,0.00027397,2]
[356715266,1743012642554,-2691.82,0.00027397,2]
[356715267,1743012642563,-500.0,0.00027397,2]
[356715268,1743012642573,-500.0,0.00027397,2]
[356715269,1743012642582,-49971.52,0.00027397,2]
[356715270,1743012642591,-500.0,0.00027397,2]
[356715271,1743012642601,-541.36379706,0.00027397,2]
[356715272,1743012642610,-500.0,0.00027397,2]
[356715273,1743012642620,-568.80998723,0.00027397,2]
[356715274,1743012642630,-500.0,0.00027397,2]
[356715275,1743012642639,-500.0,0.00027397,2]
[356715276,1743012642649,-542.88860057,0.00027397,2]
[356715277,1743012642659,-500.0,0.00027397,2]
[356715278,1743012642668,-500.0,0.00027397,2]
[356715279,1743012642677,-500.0,0.00027397,2]
[356715280,1743012642686,-500.0,0.00027397,2]
[356715281,1743012642696,-504.48706099,0.00027397,2]
[356715282,1743012642705,-500.0,0.00027397,2]
[356715283,1743012642714,-500.0,0.00027397,2]
[356715284,1743012642723,-518.35315836,0.00027397,2]
[356715285,1743012642732,-500.0,0.00027397,2]
[356715286,1743012642742,-500.0,0.00027397,2]
[356715287,1743012642751,-500.0,0.00027397,2]
[356715288,1743012642761,-1047.83,0.00027397,2]
[356715289,1743012642771,-500.0,0.00027397,2]
[356715290,1743012642781,-531.34443209,0.00027397,2]
[356715291,1743012642790,-500.0,0.00027397,2]
[356715292,1743012642800,-596.82,0.00027397,2]
[356715293,1743012642809,-504.11145317,0.00027397,2]
[356715294,1743012642819,-596.82,0.00027397,2]
[356715295,1743012642828,-596.82,0.00027397,2]
[356715296,1743012642838,-596.82,0.00027397,2]
[356715297,1743012642851,-596.82,0.00027397,2]
[356715298,1743012642860,-532.16182541,0.00027397,2]
[356715299,1743012642870,-500.0,0.00027397,2]
[356715300,1743012642880,-500.0,0.00027397,2]
[356715301,1743012642890,-596.82,0.00027397,2]
[356715302,1743012642899,-596.82,0.00027397,2]
[356715303,1743012642908,-596.82,0.00027397,2]
[356715304,1743012642917,-596.82,0.00027397,2]
[356715305,1743012642927,-596.82,0.00027397,2]
[356715306,1743012642936,-596.82,0.00027397,2]
[356715307,1743012642945,-596.82,0.00027397,2]
[356715308,1743012642954,-500.0,0.00027397,2]
[356715309,1743012642963,-596.82,0.00027397,2]
[356715310,1743012642973,-596.82,0.00027397,2]
[356715311,1743012642982,-500.0,0.00027397,2]
[356715312,1743012642992,-613.22775328,0.00027397,2]
[356715313,1743012643001,-500.0,0.00027397,2]
[356715314,1743012643011,-500.0,0.00027397,2]
[356715315,1743012643020,-500.0,0.00027397,2]
[356715316,1743012643030,-500.0,0.00027397,2]
[356715317,1743012643039,-500.0,0.00027397,2]
[356715318,1743012643048,-500.0,0.00027397,2]
[356715319,1743012643058,-503.89772307,0.00027397,2]
[356715321,1743012643068,-629.18983273,0.00027397,2]
[356715322,1743012643078,-342.55763337,0.00027397,2]
[356715323,1743012643087,-671.57,0.00027397,2]
[356715324,1743012643097,-500.0,0.00027397,2]
[356715325,1743012643106,-500.0,0.00027397,2]
[356715326,1743012643116,-521.46017653,0.00027397,2]
[356715327,1743012643126,-500.0,0.00027397,2]
[356715328,1743012643136,-154.40544542,0.00027397,2]
[356715329,1743012643146,-500.0,0.00027397,2]
[356715330,1743012643156,-553.26899097,0.00027397,2]
[356715333,1743012643167,-500.0,0.00027397,2]
[356715334,1743012643177,-519.68532918,0.00027397,2]
[356715335,1743012643187,-511.1595699,0.00027397,2]
[356715336,1743012643197,-515.71695496,0.00027397,2]
[356715338,1743012643207,-503.81161339,0.00027397,2]
[356715339,1743012643216,-572.6314574,0.00027397,2]
[356715340,1743012643226,-513.88756452,0.00027397,2]
[356715341,1743012643235,-510.12676054,0.00027397,2]
[356715342,1743012643251,-500.0,0.00027397,2]
[356715343,1743012643261,-600.87136159,0.00027397,2]
[356715344,1743012643271,-504.62983928,0.00027397,2]
[356715346,1743012643282,-566.7438412,0.00027397,2]
[356715348,1743012643292,-505.96139701,0.00027397,2]
[356715349,1743012643303,-500.0,0.00027397,2]
[356715351,1743012643313,-500.0,0.00027397,2]
[356715353,1743012643324,-513.29471338,0.00027397,2]
[356715355,1743012643334,-500.0,0.00027397,2]
[356715357,1743012643344,-500.0,0.00027397,2]
[356715359,1743012643354,-563.4192655,0.00027397,2]
[356715360,1743012643363,-500.0,0.00027397,2]
[356715361,1743012643373,-543.85362391,0.00027397,2]
[356715362,1743012643382,-500.0,0.00027397,2]
[356715363,1743012643392,-500.0,0.00027397,2]
[356715364,1743012643402,-500.0,0.00027397,2]
[356715365,1743012643412,-546.10885784,0.00027397,2]
[356715366,1743012643422,-598.34099388,0.00027397,2]
[356715367,1743012643432,-500.0,0.00027397,2]
[356715368,1743012643442,-500.0,0.00027397,2]
[356715369,1743012643451,-500.0,0.00027397,2]
[356715370,1743012643461,-500.0,0.00027397,2]
[356715371,1743012643471,-571.50643314,0.00027397,2]
[356715372,1743012643481,-500.0,0.00027397,2]
[356715373,1743012643489,-589.83,0.00027397,2]
[356715374,1743012643498,-500.0,0.00027397,2]
[356715375,1743012643508,-365.06796222,0.00027397,2]
[356715376,1743012643518,-444.95751273,0.00027397,2]
[356715377,1743012643527,-243.2242201,0.00027397,2]
[356715378,1743012643537,-500.0,0.00027397,2]
[356715379,1743012643547,-646.40608143,0.00027397,2]
[356715380,1743012643556,-150.0,0.00027397,2]
[356715381,1743012643565,-500.0,0.00027397,2]
[356715382,1743012643575,-2087.27,0.00027397,2]
[356715383,1743012643585,-500.0,0.00027397,2]
[356715384,1743012643594,-1006.52,0.00027397,2]
[356715385,1743012643604,-604.38640284,0.00027397,2]
[356715386,1743012643614,-500.0,0.00027397,2]
[356715387,1743012643624,-500.0,0.00027397,2]
[356715388,1743012643634,-500.0,0.00027397,2]
[356715389,1743012643643,-500.0,0.00027397,2]
[356715390,1743012643653,-299.92166189,0.00027397,2]
[356715391,1743012643662,-500.0,0.00027397,2]
[356715392,1743012643671,-500.0,0.00027397,2]
[356715393,1743012643682,-153.38266904,0.00027397,2]
[356715394,1743012643691,-500.0,0.00027397,2]
[356715395,1743012643700,-392.33923536,0.00027397,2]
[356715396,1743012643709,-200.2075762,0.00027397,2]
[356715397,1743012643718,-500.0,0.00027397,2]
[356715398,1743012643727,-500.0,0.00027397,2]
[356715399,1743012643736,-500.0,0.00027397,2]
[356715400,1743012643746,-500.0,0.00027397,2]
[356715401,1743012643757,-151.0,0.00027397,7]
[356715402,1743012643767,-151.0,0.00027397,7]
[356715403,1743012643777,-151.0,0.00027397,7]
[356715404,1743012643786,-358.019513,0.00027397,2]
[356715406,1743012643796,-158.681837,0.00027397,7]
[356715407,1743012643806,-158.681837,0.00027397,7]
[356715408,1743012643815,-158.681837,0.00027397,7]
[356715409,1743012643825,-158.681833,0.00027397,7]
[356715410,1743012643835,-162.928833,0.00027397,2]
[356715411,1743012643845,-501.955294,0.00027397,2]
[356715413,1743012643854,-208.217218,0.00027397,7]
[356715414,1743012643864,-170.690914,0.00027397,7]
[356715415,1743012643874,-170.690914,0.00027397,7]
[356715416,1743012643883,-170.690914,0.00027397,7]
[356715417,1743012643893,-170.690914,0.00027397,7]
[356715418,1743012643902,-170.690914,0.00027397,7]
[356715419,1743012643912,-170.690914,0.00027397,7]
[356715420,1743012643921,-151.0,0.00027397,7]
[356715421,1743012643931,-271.211876,0.00027397,7]
[356715422,1743012643940,-151.0,0.00027397,7]
[356715423,1743012643950,-151.0,0.00027397,7]
[356715424,1743012643959,-151.0,0.00027397,7]
[356715425,1743012643969,-151.0,0.00027397,7]
[356715426,1743012643978,-151.0,0.00027397,7]
[356715427,1743012643988,-184.919282,0.00027397,7]
[356715428,1743012643998,-227.002589,0.00027397,7]
[356715429,1743012644009,-227.002589,0.00027397,7]
[356715430,1743012644020,-1593.379539,0.00027397,7]
[356715431,1743012644030,-1593.379539,0.00027397,7]
[356715432,1743012644041,-227.002589,0.00027397,7]
[356715433,1743012644051,-227.002596,0.00027397,7]
[356715434,1743012644061,-1593.379539,0.00027397,7]
[356715435,1743012644071,-1593.379542,0.00027397,7]
[356715436,1743012644082,-340.47,0.00027397,2]
[356715437,1743012644091,-151.0,0.00027397,7]
[356715438,1743012644101,-151.0,0.00027397,7]
[356715439,1743012644111,-151.0,0.00027397,7]
[356715440,1743012644121,-151.0,0.00027397,7]
[356715441,1743012644130,-151.0,0.00027397,7]
[356715442,1743012644140,-151.0,0.00027397,7]
[356715443,1743012644150,-151.0,0.00027397,7]
[356715444,1743012644160,-151.0,0.00027397,7]
[356715445,1743012644170,-151.0,0.00027397,7]
[356715446,1743012644180,-151.0,0.00027397,7]
[356715447,1743012644190,-170.0,0.00027397,7]
[356715448,1743012644200,-1500.0,0.00027397,60]
[356715449,1743012644210,-150.0,0.00027534,30]
[356715450,1743012644220,-500.0,0.00027566,2]
[356715451,1743012644230,-596.82,0.00027566,2]
[356715452,1743012644240,-14000.0,0.00027567,2]
[356715453,1743012644254,-170.690914,0.00027567,7]
[356715454,1743012644265,-170.690906,0.00027567,7]
[356715455,1743012644275,-150.0,0.0002766,2]
[356715456,1743012644286,-61109.5916306,0.00027661,3]
[356715457,1743012644297,-500.0,0.00027671,2]
[356715458,1743012644306,-500.0,0.00027671,2]
[356715459,1743012644316,-664.53,0.00027671,2]
[356715460,1743012644327,-500.0,0.00027671,2]
[356715461,1743012644337,-500.0,0.00027671,2]
[356715462,1743012644347,-509.71236226,0.00027671,2]
[356715463,1743012644356,-500.0,0.00027671,2]
[356715464,1743012644366,-500.0,0.00027671,2]
[356715465,1743012644376,-500.0,0.00027671,2]
[356715466,1743012644385,-500.0,0.00027671,2]
[356715467,1743012644395,-500.0,0.00027671,2]
[356715468,1743012644406,-500.0,0.00027671,2]
[356715469,1743012644415,-500.0,0.00027671,2]
[356715470,1743012644424,-500.0,0.00027671,2]
[356715471,1743012644434,-500.0,0.00027671,2]
[356715472,1743012644443,-500.0,0.00027671,2]
[356715473,1743012644453,-500.0,0.00027671,2]
[356715474,1743012644462,-500.0,0.00027671,2]
[356715475,1743012644472,-648.49,0.00027671,2]
[356715476,1743012644482,-500.0,0.00027671,2]
[356715477,1743012644492,-1359.87,0.00027671,2]
[356715478,1743012644503,-500.0,0.00027671,2]
[356715479,1743012644512,-582.98,0.00027671,2]
[356715480,1743012644521,-500.0,0.00027671,2]
[356715481,1743012644530,-500.0,0.00027671,2]
[356715482,1743012644539,-500.0,0.00027671,2]
[356715483,1743012644549,-1640.68,0.00027671,2]
[356715484,1743012644559,-5537.15,0.00027671,2]
[356715485,1743012644568,-236.61627275,0.00027671,2]
[356715486,1743012644577,-645.7522881,0.00027671,2]
[356715487,1743012644587,-470.0,0.00027671,2]
[356715488,1743012644596,-1332.77,0.00027671,2]
[356715489,1743012644606,-500.0,0.00027671,2]
[356715490,1743012644615,-150.0,0.00027671,30]
[356715491,1743012644624,-500.0,0.00027671,2]
[356715492,1743012644633,-6555.7,0.00027671,2]
[356715493,1743012644644,-500.0,0.00027671,2]
[356715494,1743012644654,-500.0,0.00027671,2]
[356715495,1743012644663,-2096.69,0.00027671,2]
[356715496,1743012644673,-500.0,0.00027671,2]
[356715497,1743012644682,-558.31258308,0.00027671,2]
[356715498,1743012644692,-4201.48,0.00027671,2]
[356715499,1743012644701,-569.62723297,0.00027671,2]
[356715500,1743012644711,-760.06,0.00027671,2]
[356715501,1743012644720,-549.7166577,0.00027671,2]
[356715502,1743012644729,-500.0,0.00027671,2]
[356715503,1743012644739,-1032.3,0.00027671,2]
[356715504,1743012644748,-543.85042145,0.00027671,2]
[356715505,1743012644760,-1073.59,0.00027671,2]
[356715506,1743012644770,-500.0,0.00027671,2]
[356715507,1743012644779,-500.0,0.00027671,2]
[356715508,1743012644789,-500.0,0.00027671,2]
[356715509,1743012644799,-500.0,0.00027671,2]
[356715510,1743012644809,-500.0,0.00027671,2]
[356715511,1743012644818,-500.0,0.00027671,2]
[356715512,1743012644828,-676.11,0.00027671,2]
[356715513,1743012644838,-500.0,0.00027671,2]
[356715514,1743012644849,-186.85157628,0.00027671,2]
[356715515,1743012644859,-1514.73,0.00027671,2]
[356715516,1743012644869,-580.96,0.00027671,2]
[356715517,1743012644879,-500.0,0.00027671,2]
[356715518,1743012644889,-500.0,0.00027671,2]
[356715519,1743012644899,-539.66855174,0.00027671,2]
[356715520,1743012644909,-642.94722381,0.00027671,2]
[356715521,1743012644920,-500.0,0.00027671,2]
[356715522,1743012644930,-500.0,0.00027671,2]
[356715523,1743012644939,-2344.78,0.00027671,2]
[356715524,1743012644949,-502.18177958,0.00027671,2]
[356715525,1743012644959,-500.0,0.00027671,2]
[356715526,1743012644969,-261.64582003,0.00027671,2]
[356715527,1743012644979,-500.0,0.00027671,2]
[356715528,1743012644988,-924.17,0.00027671,2]
[356715529,1743012644998,-500.0,0.00027671,2]
[356715530,1743012645010,-500.0,0.00027671,2]
[356715531,1743012645020,-500.0,0.00027671,2]
[356715532,1743012645029,-8110.68,0.00027671,2]
[356715533,1743012645039,-757.14,0.00027671,2]
[356715534,1743012645049,-554.52125048,0.00027671,2]
[356715535,1743012645058,-222.94897925,0.00027671,2]
[356715536,1743012645068,-515.25529253,0.00027671,2]
[356715537,1743012645077,-503.57910494,0.00027671,2]
[356715538,1743012645087,-537.25033923,0.00027671,2]
[356715539,1743012645096,-515.77141182,0.00027671,2]
[356715540,1743012645105,-500.0,0.00027671,2]
[356715541,1743012645114,-516.42042879,0.00027671,2]
[356715542,1743012645123,-500.0,0.00027671,2]
[356715543,1743012645133,-518.39470724,0.00027671,2]
[356715544,1743012645142,-4334.17,0.00027671,2]
[356715545,1743012645151,-504.15684555,0.00027671,2]
[356715546,1743012645161,-453.46838139,0.00027671,2]
[356715547,1743012645171,-544.05837008,0.00027671,2]
[356715548,1743012645180,-500.0,0.00027671,2]
[356715549,1743012645190,-504.25176604,0.00027671,2]
[356715550,1743012645199,-500.0,0.00027671,2]
[356715551,1743012645210,-500.0,0.00027671,2]
[356715552,1743012645220,-500.0,0.00027671,2]
[356715553,1743012645229,-500.0,0.00027671,2]
[356715554,1743012645239,-517.4193907,0.00027671,2]
[356715555,1743012645252,-519.52843656,0.00027671,2]
[356715556,1743012645262,-531.72937485,0.00027671,2]
[356715557,1743012645272,-515.10841959,0.00027671,2]
[356715558,1743012645281,-500.0,0.00027671,2]
[356715559,1743012645292,-500.0,0.00027671,2]
[356715560,1743012645302,-2691.82,0.00027671,2]
[356715561,1743012645312,-342.26729499,0.00027671,2]
[356715562,1743012645321,-500.0,0.00027671,2]
[356715563,1743012645461,-49971.52,0.00027671,2]
[356715564,1743012645472,-500.0,0.00027671,2]
[356715565,1743012645481,-522.62576221,0.00027671,2]
[356715566,1743012645491,-523.39857586,0.00027671,2]
[356715567,1743012645504,-514.46697219,0.00027671,2]
[356715568,1743012645514,-500.89891491,0.00027671,2]
[356715569,1743012645524,-506.73990913,0.00027671,2]
[356715570,1743012645533,-509.42463413,0.00027671,2]
[356715571,1743012645543,-527.60618285,0.00027671,2]
[356715572,1743012645553,-500.0,0.00027671,2]
[356715573,1743012645563,-524.60758788,0.00027671,2]
[356715574,1743012645573,-550.00461073,0.00027671,2]
[356715575,1743012645583,-407.49897848,0.00027671,2]
[356715576,1743012645592,-528.41273114,0.00027671,2]
[356715577,1743012645602,-1047.83,0.00027671,2]
[356715578,1743012645611,-506.79337918,0.00027671,2]
[356715579,1743012645620,-519.95641195,0.00027671,2]
[356715580,1743012645630,-512.21073408,0.00027671,2]
[356715581,1743012645639,-466.0114026,0.00027671,2]
[356715582,1743012645649,-560.88936381,0.00027671,2]
[356715583,1743012645658,-532.63797683,0.00027671,2]
[356715584,1743012645668,-500.0,0.00027671,2]
[356715585,1743012645677,-520.61522383,0.00027671,2]
[356715586,1743012645686,-557.33099876,0.00027671,2]
[356715587,1743012645695,-552.00076351,0.00027671,2]
[356715588,1743012645705,-507.66019547,0.00027671,2]
[356715589,1743012645714,-621.75531122,0.00027671,2]
[356715590,1743012645725,-671.57,0.00027671,2]
[356715591,1743012645734,-581.9263205,0.00027671,2]
[356715592,1743012645744,-542.8575075,0.00027671,2]
[356715593,1743012645754,-504.86597467,0.00027671,2]
[356715594,1743012645764,-553.55736747,0.00027671,2]
[356715595,1743012645774,-500.0,0.00027671,2]
[356715596,1743012645784,-500.0,0.00027671,2]
[356715597,1743012645793,-173.92555013,0.00027671,2]
[356715598,1743012645802,-500.0,0.00027671,2]
[356715599,1743012645811,-500.0,0.00027671,2]
[356715600,1743012645821,-500.0,0.00027671,2]
[356715601,1743012645830,-500.0,0.00027671,2]
[356715602,1743012645839,-500.0,0.00027671,2]
[356715603,1743012645849,-500.0,0.00027671,2]
[356715604,1743012645858,-500.0,0.00027671,2]
[356715605,1743012645868,-552.80191621,0.00027671,2]
[356715606,1743012645878,-500.0,0.00027671,2]
[356715607,1743012645887,-593.16955821,0.00027671,2]
[356715608,1743012645896,-500.0,0.00027671,2]
[356715609,1743012645906,-589.83,0.00027671,2]
[356715610,1743012645916,-256.07659115,0.00027671,2]
[356715611,1743012645926,-500.0,0.00027671,2]
[356715612,1743012645935,-500.0,0.00027671,2]
[356715614,1743012645945,-2087.27,0.00027671,2]
[356715615,1743012645954,-500.0,0.00027671,2]
[356715616,1743012645963,-1006.52,0.00027671,2]
[356715617,1743012645972,-500.0,0.00027671,2]
[356715618,1743012645981,-500.0,0.00027671,2]
[356715619,1743012645991,-500.0,0.00027671,2]
[356715620,1743012646000,-500.0,0.00027671,2]
[356715621,1743012646011,-500.0,0.00027671,2]
[356715622,1743012646020,-500.0,0.00027671,2]
[356715623,1743012646030,-500.0,0.00027671,2]
[356715624,1743012646040,-500.0,0.00027671,2]
[356715625,1743012646049,-500.0,0.00027671,2]
[356715626,1743012646058,-500.0,0.00027671,2]
[356715627,1743012646068,-500.0,0.00027671,2]
[356715628,1743012646077,-358.019513,0.00027671,2]
[356715629,1743012646087,-501.955294,0.00027671,2]
[356715630,1743012646097,-1298.59,0.000278,5]
[356715631,1743012646106,-261.2661533,0.00027808,30]
[356715632,1743012646116,-962.06,0.00027828,2]
[356715633,1743012646125,-193.0,0.0002783,15]
[356715634,1743012646135,-500.0,0.00027917,2]
[356715635,1743012646145,-596.82,0.00027917,2]
[356715636,1743012646154,-34934.0,0.00027918,2]
[356715637,1743012646163,-2177.0,0.00027918,2]
[356715638,1743012646173,-500.0,0.00027945,2]
[356715639,1743012646182,-500.0,0.00027945,2]
[356715640,1743012646191,-664.53,0.00027945,2]
[356715641,1743012646201,-500.0,0.00027945,2]
[356715642,1743012646210,-500.0,0.00027945,2]
[356715643,1743012646220,-500.0,0.00027945,2]
[356715644,1743012646229,-500.0,0.00027945,2]
[356715645,1743012646239,-257.11281242,0.00027945,2]
[356715646,1743012646249,-212.55181375,0.00027945,2]
[356715647,1743012646261,-500.0,0.00027945,2]
[356715648,1743012646270,-500.0,0.00027945,2]
[356715649,1743012646280,-500.0,0.00027945,2]
[356715650,1743012646290,-213.29324072,0.00027945,2]
[356715651,1743012646299,-500.0,0.00027945,2]
[356715652,1743012646308,-500.0,0.00027945,2]
[356715653,1743012646318,-559.13001665,0.00027945,2]
[356715654,1743012646327,-500.0,0.00027945,2]
[356715655,1743012646337,-648.49,0.00027945,2]
[356715656,1743012646346,-500.0,0.00027945,2]
[356715657,1743012646356,-1359.87,0.00027945,2]
[356715658,1743012646365,-500.0,0.00027945,2]
[356715659,1743012646374,-582.98,0.00027945,2]
[356715660,1743012646383,-500.0,0.00027945,2]
[356715661,1743012646393,-500.0,0.00027945,2]
[356715662,1743012646403,-500.0,0.00027945,2]
[356715663,1743012646412,-1640.68,0.00027945,2]
[356715664,1743012646423,-5537.15,0.00027945,2]
[356715665,1743012646432,-1332.77,0.00027945,2]
[356715666,1743012646442,-500.0,0.00027945,2]
[356715667,1743012646451,-285.7,0.00027945,2]
[356715668,1743012646463,-6555.7,0.00027945,2]
[356715669,1743012646472,-500.0,0.00027945,2]
[356715670,1743012646481,-500.0,0.00027945,2]
[356715671,1743012646490,-2096.69,0.00027945,2]
[356715672,1743012646500,-500.0,0.00027945,2]
[356715673,1743012646510,-4201.48,0.00027945,2]
[356715674,1743012646520,-760.06,0.00027945,2]
[356715675,1743012646529,-500.0,0.00027945,2]
[356715676,1743012646538,-1032.3,0.00027945,2]
[356715677,1743012646548,-1073.59,0.00027945,2]
[356715678,1743012646557,-500.0,0.00027945,2]
[356715679,1743012646566,-500.0,0.00027945,2]
[356715680,1743012646575,-557.05758484,0.00027945,2]
[356715681,1743012646585,-500.0,0.00027945,2]
[356715682,1743012646594,-500.0,0.00027945,2]
[356715683,1743012646603,-500.0,0.00027945,2]
[356715684,1743012646612,-676.11,0.00027945,2]
[356715685,1743012646621,-432.77564391,0.00027945,2]
[356715687,1743012646630,-1514.73,0.00027945,2]
[356715688,1743012646639,-580.96,0.00027945,2]
[356715689,1743012646647,-563.25277553,0.00027945,2]
[356715690,1743012646657,-500.0,0.00027945,2]
[356715691,1743012646667,-2344.78,0.00027945,2]
[356715692,1743012646677,-500.0,0.00027945,2]
[356715694,1743012646686,-500.0,0.00027945,2]
[356715696,1743012646695,-924.17,0.00027945,2]
[356715697,1743012646705,-500.0,0.00027945,2]
[356715698,1743012646714,-500.0,0.00027945,2]
[356715699,1743012646723,-8110.68,0.00027945,2]
[356715700,1743012646733,-757.14,0.00027945,2]
[356715701,1743012646743,-500.0,0.00027945,2]
[356715702,1743012646752,-500.0,0.00027945,2]
[356715703,1743012646762,-4334.17,0.00027945,2]
[356715704,1743012646772,-512.47394445,0.00027945,2]
[356715705,1743012646781,-500.0,0.00027945,2]
[356715706,1743012646790,-500.0,0.00027945,2]
[356715707,1743012646800,-500.0,0.00027945,2]
[356715708,1743012646809,-500.0,0.00027945,2]
[356715709,1743012646819,-500.0,0.00027945,2]
[356715710,1743012646828,-394.09792915,0.00027945,2]
[356715711,1743012646838,-2691.82,0.00027945,2]
[356715712,1743012646847,-49971.52,0.00027945,2]
[356715713,1743012646856,-500.0,0.00027945,2]
[356715714,1743012646866,-248.23956008,0.00027945,2]
[356715715,1743012646875,-500.0,0.00027945,2]
[356715716,1743012646884,-1047.83,0.00027945,2]
[356715717,1743012646893,-500.0,0.00027945,2]
[356715718,1743012646902,-671.57,0.00027945,2]
[356715719,1743012646911,-500.0,0.00027945,2]
[356715720,1743012646920,-500.0,0.00027945,2]
[356715721,1743012646930,-500.0,0.00027945,2]
[356715722,1743012646939,-500.0,0.00027945,2]
[356715723,1743012646949,-332.4020613,0.00027945,2]
[356715724,1743012646958,-500.0,0.00027945,2]
[356715725,1743012646968,-500.0,0.00027945,2]
[356715726,1743012646979,-597.78484686,0.00027945,2]
[356715727,1743012646989,-500.0,0.00027945,2]
[356715728,1743012646998,-500.0,0.00027945,2]
[356715729,1743012647009,-500.0,0.00027945,2]
[356715730,1743012647018,-589.83,0.00027945,2]
[356715731,1743012647027,-500.0,0.00027945,2]
[356715732,1743012647037,-327.53521487,0.00027945,2]
[356715733,1743012647045,-2087.27,0.00027945,2]
[356715734,1743012647055,-158.07973008,0.00027945,2]
[356715735,1743012647064,-1006.52,0.00027945,2]
[356715736,1743012647074,-500.0,0.00027945,2]
[356715737,1743012647083,-500.0,0.00027945,2]